Cogmind - Beta 9.1 @@@ ROGUE MODE // 2019.11.05 @ 00:46:31 Player: MrPainting Result: Self-destructed Performance ------------- Evolutions (2) 1000 Regions Visited (3) 600 Robots Destroyed (30) 150 Value Destroyed (643) 643 Prototype IDs (1) 20 Alien Tech Used (0) 0 Bonus (0) 0 TOTAL SCORE: 2413 Bonus ------- None Cogmind --------- Core Integrity 447/550 Matter 300/300 Energy 17/265 System Corruption 0% Temperature Cool (329) Location -8/Materials Parts ------- Power (1) Improved Ion Engine Propulsion (4) Carbon-fiber Leg Titanium Leg Utility (4) Small Storage Unit Improved Targeting Computer Advanced Targeting Computer Improved Propulsion Shielding Weapon (2) Inventory (6) Heat Sink Large Storage Unit Large Storage Unit Enhanced Autogun Improved Datajack Peak State ------------ Power Improved Ion Engine Propulsion Aluminum Leg Improved Aluminum Leg Carbon-fiber Leg Titanium Leg Utility Small Storage Unit Improved Targeting Computer Improved Targeting Computer Hardened Medium Armor Plating Weapon EM Pulse Cannon Enhanced Autogun Inventory Aluminum Leg Heat Sink Improved Propulsion Shielding Tractor Beam EM Pulse Cannon EM Pulse Cannon [Rating: 27] Favorites ----------- Power Light Ion Engine Engine Light Ion Engine Propulsion Aluminum Leg Leg Aluminum Leg Utility Improved Targeting Computer Device Heat Sink Storage Small Storage Unit Processor Improved Targeting Computer Protection Hardened Medium Armor Plating Weapon Light Cannon Energy Cannon EM Pulse Cannon Ballistic Gun Assault Rifle Ballistic Cannon Light Cannon Build | -11 -10 -9 -8 ------- Run | Scr Mat Mat Mat Slots Evolved 4 | . . 2 2 Power . | . . . . Propulsion 2 | . . 1 1 Utility 2 | . . 1 1 Weapon . | . . . . Parts Attached 27 | 4 6 6 11 Power 4 | . 1 2 1 Engine 4 | . 1 2 1 Core . | . . . . Reactor . | . . . . Propulsion 7 | 2 . 2 3 Treads . | . . . . Leg 7 | 2 . 2 3 Wheel . | . . . . Hover . | . . . . Flight . | . . . . Utility 8 | . 3 2 3 Device 2 | . 2 . . Storage 1 | . 1 . . Processor 3 | . . 2 1 Hackware . | . . . . Protection 2 | . . . 2 Artifact . | . . . . Weapon 8 | 2 2 . 4 Energy Gun . | . . . . Energy Cannon 2 | . . . 2 Ballistic Gun 4 | 2 . . 2 Ballistic Cannon 2 | . 2 . . Launcher . | . . . . Special Weapon . | . . . . Impact Weapon . | . . . . Slashing Weapon . | . . . . Piercing Weapon . | . . . . Special Melee Weapon . | . . . . Unidentified Prototypes 1 | . . . 1 Parts Lost 8 | . . 3 5 Power 1 | . . 1 . Propulsion 3 | . . 1 2 Utility 1 | . . . 1 Weapon 3 | . . 1 2 Highest Loss Streak 5 | . . 3 5 Average Slot Usage (%) 92 | . 91 82 98 Engine 9 | . 11 9 9 Leg 29 | . 28 22 34 Device 5 | . 11 6 . Storage 10 | . 11 11 9 Processor 11 | . . 12 18 Protection 4 | . . . 8 Energy Cannon 5 | . . . 12 Ballistic Gun 2 | . 2 . 4 Ballistic Cannon 12 | . 25 19 . Naked Turns . | . . . . Heaviest Build 31 | 4 14 16 31 Greatest Support 55 | 20 20 30 55 Greatest Overweight (x) 1 | 1 . 1 . Average Overweight (x) . | . . . . Largest Inventory Capacity 6 | 4 6 6 6 Average Capacity 5 | 4 5 6 6 Most Carried 6 | 2 4 5 6 Average Carried 4 | . 2 3 5 Final Capacity 6 | 4 6 6 6 Final Carried 5 | 2 3 4 5 Class Distribution -------------------- 100% | Mutant Dominant Class ---------------- Mutant | -10/Materials Mutant | -9/Materials Mutant | -8/Materials Resources | -11 -10 -9 -8 ----------- Run | Scr Mat Mat Mat Matter Collected 787 | 229 122 219 217 Remotely 42 | . 42 . . Salvage Created 753 | . 214 169 370 Parts 51 | . 12 9 30 Haulers Intercepted . | . . . . Recyclers Shooed . | . . . . Parts Field Recycled . | . . . . Retrieved Matter . | . . . . Parts Self-Destructed . | . . . . Prevented . | . . . . Kills | -11 -10 -9 -8 ------- Run | Scr Mat Mat Mat Combat Hostiles Destroyed 25 | . 7 5 13 Guns 2 | . . . 2 Cannons 23 | . 7 5 11 Classes Destroyed 5 | . 4 1 . Worker 2 | . 1 1 . Watcher 3 | . 2 . 1 Swarmer 13 | . 3 . 10 Grunt 9 | . 4 4 1 Sentry 3 | . . 1 2 Best Kill Streak 6 | . 6 3 5 Combat Bots Only 5 | . 2 3 5 Max Kills in Single Turn 1 | . 1 1 1 Gunslinging . | . . . . Exploded . | . . . . Melee . | . . . . Uniques/NPCs Destroyed . | . . . . Combat | -11 -10 -9 -8 -------- Run | Scr Mat Mat Mat Damage Taken 1569 | . 246 265 1058 Core 121 | . 6 12 103 Absorbed by Shields . | . . . . Core Remaining (%) 98 | 100 97 97 . Volleys Fired 72 | . 23 16 33 Largest 2 | . 2 2 2 Hottest 126 | . 70 70 126 Shots Fired 121 | . 46 27 48 Gun 15 | . . . 15 Cannon 106 | . 46 27 33 Launcher . | . . . . Special . | . . . . Kinetic 88 | . 46 27 15 Thermal . | . . . . Explosive . | . . . . Electromagnetic 33 | . . . 33 Robot Hit Streak 8 | . 5 8 6 Robot Miss Streak 4 | . 4 3 2 Penetration Max . | . . . . Secondary Targets . | . . . . Shots Hit Robots 69 | . 21 19 29 Core Hits 32 | . 10 7 15 Critical Hits 3 | . . 2 1 Critical Kills . | . . . . Critical Parts Destroyed 3 | . . 2 1 Melee Attacks . | . . . . Impact . | . . . . Slashing . | . . . . Piercing . | . . . . Sneak Attacks . | . . . . Combat Hostiles . | . . . . Follow-up Attacks . | . . . . Damage Inflicted 1312 | . 321 311 680 Guns 104 | . . . 104 Cannons 1208 | . 321 311 576 Explosions . | . . . . Melee . | . . . . Ramming . | . . . . Kinetic 736 | . 321 311 104 Thermal . | . . . . Explosive . | . . . . Electromagnetic 576 | . . . 576 Impact . | . . . . Slashing . | . . . . Piercing . | . . . . Highest Corruption . | . . . . Average Corruption . | . . . . Corruption Purged . | . . . . Overload Shots . | . . . . Overflow Damage 3 | . . . 3 Projectiles 3 | . . . 3 Explosions . | . . . . Melee . | . . . . Knockbacks 10 | . 5 5 . Impact . | . . . . Kinetic 10 | . 5 5 . Secondary . | . . . . Self-Inflicted Damage . | . . . . Shots . | . . . . Rammed . | . . . . Targets Rammed . | . . . . Kicked . | . . . . Crushed . | . . . . Highest Temperature 329 | . 9 33 329 Average Temperature 87 | . 6 13 100 Received Heat Transfer 420 | . 12 135 273 Siege Activations . | . . . . Robots Corrupted . | . . . . Combat Hostiles . | . . . . Parts Fried 3 | . . . 3 Impact Corruptions . | . . . . Robots Melted . | . . . . Combat Hostiles . | . . . . Parts Melted . | . . . . Heat Transferred . | . . . . Parts Sabotaged . | . . . . Parts Stolen . | . . . . Parts Stripped . | . . . . Power Chain Reactions . | . . . . Missiles Intercepted . | . . . . Alert | -11 -10 -9 -8 ------- Run | Scr Mat Mat Mat Peak Influence 264 | . 194 206 264 Average Influence 116 | . 55 130 165 Maximum Alert Level 1 | . . 1 1 Low Security (%) 73 | . . . . Level 1 26 | . . . . Level 2 . | . . . . Level 3 . | . . . . Level 4 . | . . . . Level 5 . | . . . . High Security . | . . . . Max Security . | . . . . Squads Dispatched 3 | . 1 1 1 Investigation 1 | . 1 . . Extermination . | . . . . Reinforcement 1 | . . 1 . Assault 1 | . . . 1 Garrison . | . . . . Intercept . | . . . . Construction Impeded . | . . . . Haulers Reinforced . | . . . . Stealth | -11 -10 -9 -8 --------- Run | Scr Mat Mat Mat Distress Signals 2 | . 1 1 . Communications Jammed . | . . . . Distress Signals . | . . . . Times Spotted 39 | . 11 6 22 Peak Tracking Total 9 | . 3 3 9 Tactical Retreats 1 | . 1 . . Traps | -11 -10 -9 -8 ------- Run | Scr Mat Mat Mat Traps Triggered 5 | . 3 . 2 Indirectly . | . . . . Trap Hack Attempts . | . . . . Triggered . | . . . . Disarmed . | . . . . Reprogrammed . | . . . . Reused . | . . . . Traps Extracted . | . . . . Installed . | . . . . Triggered . | . . . . Machines | -11 -10 -9 -8 ---------- Run | Scr Mat Mat Mat Machines Disabled . | . . . . Max in Single Turn . | . . . . Garrison Access 1 | . . . 1 Machines Sabotaged . | . . . . Garrisons Compromised . | . . . . Overloaded Fab Kills . | . . . . Fab Network Shutdowns . | . . . . Hacking | -11 -10 -9 -8 --------- Run | Scr Mat Mat Mat Machines Accessed . | . . . . Terminals . | . . . . Fabricators . | . . . . Repair Stations . | . . . . Recycling Units . | . . . . Scanalyzers . | . . . . Garrison Access . | . . . . Total Hacks . | . . . . Successful . | . . . . Failed . | . . . . Catastrophic . | . . . . Database Lockouts . | . . . . Manual . | . . . . Terminals . | . . . . Fabricators . | . . . . Repair Stations . | . . . . Recycling Units . | . . . . Scanalyzers . | . . . . Garrison Access . | . . . . Terminal Hacks . | . . . . Fabricator Hacks . | . . . . Repair Station Hacks . | . . . . Recycling Unit Hacks . | . . . . Scanalyzer . | . . . . Garrison Access Hacks . | . . . . Unauthorized Hacks . | . . . . Terminals . | . . . . Fabricators . | . . . . Repair Stations . | . . . . Recycling Units . | . . . . Scanalyzers . | . . . . Garrison Access . | . . . . Data Cores Recovered . | . . . . Used . | . . . . Hacking Detections . | . . . . Full Trace Events . | . . . . Feedback Events . | . . . . Feedback Blocked . | . . . . Robot Schematics Acquired . | . . . . Robots Built . | . . . . Matter . | . . . . Time . | . . . . Total Robot Build Rating . | . . . . Part Schematics Acquired . | . . . . Parts Built . | . . . . Matter . | . . . . Time . | . . . . Total Part Build Rating . | . . . . Parts Repaired . | . . . . Time . | . . . . Parts Recycled . | . . . . Recycled Matter . | . . . . Retrieved Matter . | . . . . Retrieved Components . | . . . . Parts Scanalyzed . | . . . . Part Schematics Acquired . | . . . . Parts Damaged . | . . . . Bothacking | -11 -10 -9 -8 ------------ Run | Scr Mat Mat Mat Used RIF Installer . | . . . . Robots Hacked . | . . . . Non-combat . | . . . . Combat . | . . . . Robot Hacks Applied . | . . . . Relay Couplers Released 3 | . . . 3 Machine Destruction 3 | . . . 3 Robots Rewired . | . . . . Allies Hacked . | . . . . Hacks Repelled . | . . . . Allies | -11 -10 -9 -8 -------- Run | Scr Mat Mat Mat Total Allies . | . . . . Largest Group . | . . . . Highest-Rated Group . | . . . . Highest-Rated Ally . | . . . . Total Orders . | . . . . Ally Attacks . | . . . . Total Damage . | . . . . Kills . | . . . . Allies Corrupted . | . . . . Allies Melted . | . . . . Intel | -11 -10 -9 -8 ------- Run | Scr Mat Mat Mat Robot Analysis Total . | . . . . Derelict Logs Recovered . | . . . . Drone Launches . | . . . . Drone Recoveries . | . . . . Exploration | -11 -10 -9 -8 ------------- Run | Scr Mat Mat Mat Turns Passed 1161 | 64 340 246 511 Spaces Moved 721 | 53 209 138 321 Core 10 | 10 . . . Treads . | . . . . Legs 711 | 43 209 138 321 Wheels . | . . . . Hover . | . . . . Flight . | . . . . Fastest Speed 50 | 50 120 120 120 Average Speed 119 | 107 120 120 121 Slowest Speed 150 | 120 120 150 125 Overloaded Moves . | . . . . Propulsion Burnouts . | . . . . Robots Hopped . | . . . . Cave-ins Triggered . | . . . . Exploration Rate (%) 23 | 3 40 17 33 Regions Visited 3 Branch Regions . Pre-discovered Areas . | . . . . Known Exits Taken . | . . . . Unknown Exits Taken 3 | 1 1 1 . Scrap Searched . | . . . . Spaces Dug . | . . . . Terrain Destroyed . | . . . . Melee . | . . . . Projectile . | . . . . AOE . | . . . . Actions | -11 -10 -9 -8 --------- Run | Scr Mat Mat Mat Total 894 | 58 250 191 395 Wait 45 | . 10 24 11 Move 718 | 52 208 137 321 Hop . | . . . . Pick Up 21 | 2 3 6 10 Fast Attach 5 | 4 1 . . Attach 11 | . 2 5 4 Detach 1 | . . 1 . Swap 11 | . 3 1 7 Drop 10 | . . 1 9 Fire 72 | . 23 16 33 Melee . | . . . . Ram . | . . . . Kick . | . . . . Crush . | . . . . Escape Stasis . | . . . . Rewire . | . . . . Trap . | . . . . Miscellaneous . | . . . . Route ------- -11/Scrapyard -10/Materials -9/Materials -8/Materials (discovered 1 exit: [*Sto]) History --------- Turn | Location | Event 6 | -11/Scrapyard | Discovered new exit (range 15) 65 | -11/Scrapyard | Entered Materials 317 | -10/Materials | Build established: Mutant 397 | -10/Materials | Discovered new exit (range 6) 405 | -10/Materials | Entered another Materials area 405 | -9/Materials | Evolved 2 slots: Propulsion x1, Utility x1 638 | -9/Materials | Lost 3 parts (1p1n1w) 643 | -9/Materials | Discovered new exit (range 5) 651 | -9/Materials | Entered another Materials area 651 | -8/Materials | Evolved 2 slots: Propulsion x1, Utility x1 1113 | -8/Materials | Discovered new exit (range 15) 1162 | -8/Materials | Self-destructed Last Messages --------------- 01155_ U-05 Engineer destroyed. 01155_ G-47 Trooper destroyed. 01155_ Terminal disabled. 01155_ G-47 Trooper destroyed. 01155_ G-50 Soldier destroyed. 01155_ ALERT: Garrison Access compromised, dispatching assault squad. 01155_ Garrison Access disabled. 01155_ Relay Coupler [Brawler] tumbles out of Garrison Access. 01155_ Relay Coupler [Swarmer] tumbles out of Garrison Access. 01155_ Relay Coupler [Grunt] tumbles out of Garrison Access. 01155_ K-01 Serf destroyed. 01155_ Triggered Explosive Trap. 01155_ An explosion rips through the floor. 01155_ K-01 Serf destroyed. 01155_ Aluminum Leg destroyed. 01155_ U-05 Engineer lays Concrete. 01161_ Hrd. Medium Armor Plating destroyed. 01161_ EM Pulse Cannon destroyed. 01162_ Acquired 5 matter. 01162_ U-05 Engineer lays Concrete. Map ----- +----------------------------------------------------+ | ?????????????????????????????????????????????????? | | ?????????????????????????????????????????????????? | | ?????????????????????????????????????????????????? | | ?????????????????????????????????????????????????? | | ?????????????????????????????????????????????????? | | ?????????????????????????????????????????????????? | | ?????????????????????????????????????????????????? | | ?????????????????????????????????????????????????? | | ?????????????????????????????????????????????????? | | ?????????????????????????????????????????????????? | | ?????????????????????????????????????????????????? | | ?????????????????????????????????????????????????? | | ###############??????????????????????????????????? | | ###########????????????????????????? | | # !!#????????????????????????? | | # !!#????????????????????????? | | ########### # #????????????????????????? | | ??????????# # = ####?????????????????????? | | ??????????# # [ + #??????????????? | | ??????????# + """ = * ####?????????????????????? | | ########### # """ [ #?????????#??????????????? | | # ## # """ #??????? #??????????????? | | # """" ## ###############? #### #?????????? | | # """" # ######"T" # #?????????? | | # """" # % * #?????????? | | # + [u !@ u a ????????? | | # # Y [ "" ????????? | | # " " # ###;;g%% G" ?????????? | | # "R" ### ###?# " #######?????????? | | # """ #?# #???# g ! #???????????????? | | ##########?# #???# ! k#???????????????? | | ???????????# #???#;; %g +???????????????? | | ???????????# #???##;=*! * #???????????????? | | ???????????# #????#;%== #???????????????? | | ???????????# #????##!%! #???????????????? | | ???????????# #?????# [!########+##???????????????? | | ???????????# #?????# #?????????????????????????? | | ???????????# #?????# t#?????????????????????????? | | ???????????# #?????# #?????????????????????????? | | ???????????? ??????# #?????????????????????????? | | ???????????? ??????# #?????????????????????????? | | ???????????? ??????# #?????????????????????????? | | ???????????? ??????? ??????????????????????????? | | ???????????? ??????? ??????????????????????????? | | ???????????? ????????????????????????????????????? | | ????????????